bitfinex-derivatives/quotes_ETHF0:USTF0_20260204
["timestamp","ask_amount","ask_price","bid_price","bid_amount"]
[1770168437861,0.00407416,2271.1,2270.1,2.6132863]
[1770168438559,2.28548696,2271.8,2270.3,2.3927163]
[1770168438762,2.28548696,2272.0,2270.3,2.3927163]
[1770168439165,3.14748696,2272.0,2270.3,2.3927163]
[1770168439666,2.28873105,2272.0,2270.7,2.3927163]
[1770168440962,0.00324409,2272.0,2271.1,2.6748]
[1770168441260,2.56358282,2273.7,2271.5,2.45433]
[1770168441261,2.5102239,2272.7,2271.5,2.45433]
[1770168441966,2.5102239,2273.0,2271.7,2.45433]
[1770168442168,2.5102239,2273.6,2271.7,2.45433]
[1770168442367,2.5156071,2273.6,2272.2,2.45433]
[1770168444170,2.5156071,2273.6,2272.1,0.22037]
[1770168444667,2.5102239,2273.3,2271.7,0.0048258]
[1770168445168,2.7304939,2273.3,2271.7,2.4591558]
[1770168447072,2.5102239,2273.1,2271.7,2.4591558]
[1770168447268,0.0053832,2273.6,2272.6,2.45433]
[1770168448374,0.0053832,2273.6,2272.5,2.67466]
[1770168448375,2.5156071,2273.6,2272.5,2.67466]
[1770168448775,0.0053832,2273.6,2272.5,2.67466]
[1770168449471,2.5156071,2273.6,2272.5,2.67466]
[1770168451177,0.0053832,2273.6,2272.5,2.67466]
[1770168452173,2.5156071,2273.6,2272.5,2.67466]
[1770168453075,2.5156071,2273.6,2272.2,2.45433]
[1770168455178,2.5156071,2273.6,2272.0,0.22038]
[1770168456384,2.5102239,2273.0,2271.7,0.0048258]
[1770168456682,2.5102239,2272.9,2271.7,2.4591558]
[1770168456983,2.5102239,2272.9,2271.7,2.6795658]
[1770168457184,2.5102239,2273.4,2271.9,2.45433]
[1770168457378,2.5102239,2273.4,2272.0,0.22038]
[1770168457582,2.5102239,2273.4,2272.1,2.45433]
[1770168458278,2.7304839,2273.3,2271.8,2.45433]
[1770168458477,2.5102239,2273.1,2271.8,2.45433]
[1770168459276,2.5102239,2273.1,2272.0,2.45433]
[1770168459581,2.5102239,2273.1,2272.0,2.67471]
[1770168459884,2.5102239,2273.1,2271.7,0.0048258]
[1770168460083,2.5102239,2273.1,2271.8,2.45433]
[1770168460285,2.7305039,2273.1,2271.8,2.45433]
[1770168461384,2.5102239,2272.8,2271.7,0.0048258]
[1770168465483,2.5102239,2272.6,2271.2,2.45433]
[1770168466582,2.5102239,2272.6,2271.5,2.45433]
[1770168467989,2.5102239,2272.6,2271.2,2.45949703]
[1770168468687,2.7305539,2272.6,2271.2,2.45949703]
[1770168469083,2.5102239,2272.4,2271.2,0.00516703]
[1770168470990,2.32986541,2272.2,2271.2,0.00516703]
[1770168471690,2.32986541,2272.2,2271.2,2.51947211]
[1770168473286,2.32986541,2272.2,2271.2,0.00516703]
[1770168473787,2.32986541,2272.0,2271.2,0.00516703]
[1770168474091,2.32986541,2272.0,2270.6,2.51430508]
[1770168474092,2.33405386,2272.0,2270.6,2.51430508]
[1770168474392,2.32986541,2271.3,2270.0,2.51430508]
[1770168474782,2.32986541,2271.1,2270.0,2.51430508]
[1770168475182,2.32986541,2271.1,2270.0,2.51773167]
[1770168475388,2.32986541,2271.4,2270.0,2.51773167]
[1770168475885,2.29625135,2271.2,2270.0,2.51773167]
[1770168476491,0.861,2271.5,2270.0,0.00342659]
[1770168476492,2.29625135,2271.0,2270.0,0.00342659]
[1770168477592,2.51673135,2271.0,2270.0,0.00342659]
[1770168478487,2.51673135,2271.0,2270.0,2.29058989]
[1770168479290,2.51673135,2271.0,2270.0,0.00342659]
[1770168480697,2.29625135,2271.4,2270.0,2.29058989]
[1770168481498,2.51672135,2271.1,2270.0,0.00342659]
[1770168481794,2.29625135,2270.5,2269.4,2.2871633]
[1770168481997,2.51678135,2270.5,2269.4,2.2871633]
[1770168482793,2.51678135,2270.5,2269.4,2.29230948]
[1770168483900,2.29625135,2271.1,2269.9,2.2871633]
[1770168486495,2.51673135,2271.1,2269.5,2.2871633]
[1770168486904,2.51673135,2271.1,2269.5,2.5077833]
[1770168487203,2.29625135,2271.1,2269.7,2.5077633]
[1770168487402,2.29625135,2271.1,2269.9,2.2871633]
[1770168488300,2.29625135,2271.1,2269.9,2.5077533]
[1770168488508,2.29625135,2271.4,2270.2,2.2871633]
[1770168488799,2.3004398,2272.0,2270.8,2.5076633]
[1770168489198,2.3004398,2272.0,2270.8,2.2871633]
[1770168489405,2.3004398,2272.0,2271.0,2.2871633]
[1770168489406,0.00418845,2272.0,2271.0,2.2871633]
[1770168489604,0.00418845,2272.0,2271.0,2.29243853]
[1770168490001,2.3004398,2272.0,2271.0,2.29243853]
[1770168491308,2.3004398,2272.0,2271.0,0.00527523]
[1770168491509,2.5208298,2272.0,2271.0,0.00527523]
[1770168494705,2.3004398,2272.0,2271.0,2.29243853]
[1770168495910,2.3004398,2272.0,2271.0,0.00527523]
[1770168499905,2.29625135,2271.8,2270.3,2.2871633]
[1770168500110,2.51666135,2271.8,2270.3,2.2871633]
[1770168501012,2.51666135,2271.8,2270.3,2.29092695]
[1770168504616,2.38417898,2271.5,2270.3,2.29092695]
[1770168504818,2.60461898,2271.5,2270.3,2.29092695]
[1770168505118,2.38417898,2271.1,2270.3,0.00376365]
[1770168505317,2.60464898,2271.1,2270.3,0.00376365]
[1770168506014,2.60464898,2271.1,2269.7,2.27700478]
[1770168506412,2.55874092,2271.4,2269.7,2.27700478]
[1770168506413,0.2205,2270.8,2269.7,2.27700478]
[1770168506617,2.38417898,2270.5,2269.4,2.27700478]
[1770168507019,2.38417898,2270.5,2269.4,2.28020434]
[1770168507424,3.24517898,2270.7,2269.4,2.28020434]
[1770168507622,2.38417898,2270.6,2269.4,2.28020434]
[1770168508325,2.38417898,2270.9,2269.7,2.49761478]
[1770168508521,2.38417898,2271.2,2269.8,2.27700478]
[1770168509115,2.38417898,2271.2,2269.8,2.49760478]
[1770168509820,2.38417898,2271.2,2270.0,2.27700478]
[1770168510918,2.38417898,2271.5,2270.0,2.49757478]
[1770168512925,2.38417898,2271.5,2270.2,2.27700478]
[1770168513726,2.38417898,2271.3,2270.2,2.27700478]
[1770168513926,2.38417898,2271.3,2269.8,2.27700478]
[1770168514126,2.60463898,2271.3,2269.8,2.27700478]
[1770168516923,2.38417898,2271.3,2270.0,2.27700478]
[1770168517123,2.38417898,2271.3,2270.0,2.49758478]
[1770168518030,2.38417898,2271.3,2270.2,2.27700478]
[1770168518528,6.73728411,2271.8,2270.2,2.27700478]
[1770168518529,2.38417898,2271.7,2270.2,2.27700478]
[1770168519130,2.38417898,2271.7,2270.2,2.49756478]
[1770168519324,2.38417898,2271.6,2270.2,2.49756478]
[1770168520325,2.38417898,2271.6,2269.9,2.27700478]
[1770168520531,2.38417898,2271.4,2269.9,2.27700478]
[1770168521327,2.38417898,2271.1,2269.9,2.27700478]
[1770168522130,2.38417898,2271.1,2269.7,2.27700478]
[1770168522337,2.38417898,2271.0,2269.7,2.27700478]
[1770168522633,2.60466898,2271.0,2269.7,2.27700478]
[1770168525734,2.38417898,2271.0,2269.7,2.27700478]
[1770168525931,2.38417898,2271.0,2269.7,2.49760478]
[1770168529432,0.22046,2271.2,2269.9,2.27700478]
[1770168529732,2.38417898,2271.2,2269.9,2.49759478]
[1770168534139,2.32322265,2271.1,2269.9,2.49759478]
[1770168534340,2.32322265,2271.1,2269.7,2.32918068]
[1770168534341,2.54369265,2271.1,2269.7,2.32918068]
[1770168534640,9.06057676,2271.1,2269.7,2.32918068]
[1770168534836,2.32322265,2271.0,2269.7,2.32918068]
[1770168535033,2.32322265,2271.0,2269.9,2.32918068]
[1770168535333,2.32322265,2271.0,2269.9,2.54977068]
[1770168535836,2.32322265,2271.0,2270.0,2.43259182]
[1770168536439,2.36747317,2271.2,2270.0,2.43259182]
[1770168536938,2.36747317,2271.0,2269.8,2.43259182]
[1770168539639,2.36747317,2270.9,2269.8,2.43259182]
[1770168541038,2.36747317,2270.5,2269.4,0.00319956]
[1770168541244,2.36747317,2270.2,2269.1,2.43259182]
[1770168541744,3.22847317,2270.4,2269.1,2.43259182]
[1770168541942,2.36747317,2270.3,2269.1,2.43259182]
[1770168542237,2.37135977,2270.3,2269.1,2.437526]
[1770168542435,2.37135977,2270.3,2269.2,2.43259182]
[1770168542634,2.59190977,2270.3,2269.2,2.43259182]
[1770168542835,2.59190977,2270.3,2269.1,0.00493418]
[1770168543439,2.36747317,2270.2,2269.1,0.00493418]
[1770168545146,2.36747317,2270.2,2269.1,2.437526]
[1770168546841,2.58803317,2270.2,2269.1,0.00493418]
[1770168547545,2.58803317,2270.2,2269.1,2.437526]
[1770168548342,2.58803317,2270.2,2269.1,0.00493418]
[1770168550342,2.36747317,2270.2,2269.1,0.00493418]
[1770168550544,2.36747317,2270.0,2269.1,0.00493418]
[1770168553451,2.58805317,2270.0,2268.6,2.43259182]
[1770168554444,2.58805317,2270.0,2268.6,2.43739592]
[1770168556147,2.36747317,2270.0,2268.6,2.43739592]
[1770168556348,0.0038866,2270.3,2269.1,2.43259182]
[1770168556547,0.0038866,2270.3,2269.1,2.65325182]
[1770168557146,2.37135977,2270.3,2269.1,2.65325182]
[1770168557650,0.0038866,2270.3,2269.1,2.65325182]
[1770168558444,0.0038866,2270.3,2269.4,2.65323182]
[1770168558655,2.36747317,2270.9,2269.6,2.43259182]
[1770168559154,2.36747317,2270.9,2269.6,2.65320182]
[1770168559854,2.37165867,2270.9,2269.6,2.65320182]
[1770168566159,2.37165867,2270.9,2269.2,2.58528192]
[1770168566360,2.70515666,2270.7,2269.3,2.4755536]
[1770168567863,2.48464666,2270.7,2269.3,2.4755536]
[1770168568765,2.48464666,2270.7,2269.3,2.6962036]
[1770168569066,2.48464666,2270.7,2269.5,2.6961736]
[1770168569268,2.48883216,2270.9,2269.7,2.4755536]
[1770168570060,0.0041855,2270.9,2269.7,2.58528192]
[1770168570265,2.48464666,2271.6,2270.4,2.6960936]
[1770168570657,2.48464666,2271.6,2270.4,2.4755536]
[1770168570858,2.48464666,2271.6,2270.1,2.4755536]
[1770168571261,2.48842967,2271.6,2270.1,2.4788918]
[1770168571467,2.48842967,2271.6,2270.1,2.6994618]
[1770168571965,2.48842967,2271.6,2270.3,2.6961036]
[1770168573861,2.48842967,2271.6,2270.3,2.4755536]
[1770168576461,2.48842967,2271.6,2270.3,2.6961036]
[1770168582167,2.48464666,2271.1,2270.1,0.0033382]
[1770168582369,2.48464666,2271.1,2270.1,2.4788918]
[1770168582673,2.48464666,2271.5,2270.1,2.4788918]
[1770168583172,2.48464666,2271.5,2270.4,2.4755536]
[1770168583769,2.48464666,2271.5,2270.3,0.22055]
[1770168584874,2.48464666,2271.5,2270.3,2.6961036]
[1770168585272,2.48464666,2271.5,2270.5,2.4755536]
[1770168586073,0.00378301,2271.6,2270.5,2.4755536]
[1770168586273,2.48842967,2271.6,2270.5,2.4755536]
[1770168586666,0.00378301,2271.6,2270.5,2.6960836]
[1770168588277,2.48842967,2271.6,2270.5,2.6960836]
[1770168589068,2.48842967,2271.6,2270.5,2.4755536]
[1770168589478,2.48842967,2271.6,2270.2,2.4755536]
[1770168590276,2.70884967,2271.6,2270.2,2.4755536]
[1770168591479,2.70884967,2271.6,2270.2,2.6961136]
[1770168593879,2.70884967,2271.6,2270.1,0.0033382]
[1770168593880,2.48842967,2271.6,2270.6,2.50981118]
[1770168594075,2.48842967,2271.6,2270.6,2.73033118]
[1770168594777,0.00378301,2271.6,2270.8,2.73031118]
[1770168595578,6.51688411,2272.5,2270.9,2.50907553]
[1770168595778,2.5201716,2272.6,2271.5,2.50907553]
[1770168596575,2.5258169,2272.6,2271.2,2.50907553]
[1770168600481,2.5201716,2272.4,2270.9,2.50907553]
[1770168600679,2.5201716,2272.4,2270.9,2.72956553]
[1770168602681,2.5201716,2272.2,2270.7,2.57501981]
[1770168602886,2.5201716,2272.0,2270.6,2.50907553]
[1770168604880,2.5201716,2272.0,2270.4,2.72961553]
[1770168605382,2.5201716,2271.8,2270.4,2.50907553]
[1770168605783,2.7405816,2271.8,2270.4,2.50907553]
[1770168607480,2.5201716,2271.8,2270.4,2.50907553]
[1770168607678,2.5201716,2271.8,2270.6,2.50907553]
[1770168608087,2.5201716,2271.8,2270.6,2.72959553]
[1770168608774,6.73725411,2272.2,2271.0,2.50907553]
[1770168608775,2.5201716,2272.2,2271.0,2.50907553]
[1770168611777,2.5201716,2272.2,2270.4,2.57501981]
[1770168612084,0.22043,2271.6,2270.4,2.50907553]
[1770168612286,2.5201716,2271.5,2270.4,2.50907553]
[1770168613085,2.5201716,2271.5,2270.1,2.51241373]
[1770168613285,2.5201716,2271.3,2270.1,0.0033382]
[1770168613785,2.5201716,2271.1,2270.1,0.0033382]
[1770168613981,2.5201716,2271.4,2270.1,2.51241373]
[1770168614284,2.5201716,2271.4,2270.3,2.50907553]
[1770168614491,2.5201716,2271.7,2270.5,2.50907553]
[1770168614987,2.5201716,2271.7,2270.2,2.57501981]
[1770168614988,2.5201716,2271.7,2270.2,2.50907553]
[1770168615182,2.7406216,2271.4,2270.1,0.0033382]
[1770168615583,2.5201716,2271.2,2270.1,0.0033382]
[1770168616388,2.5201716,2271.2,2270.1,2.51241373]
[1770168617890,2.5201716,2271.5,2270.1,2.51241373]
[1770168619191,2.5201716,2271.3,2270.1,0.0033382]
[1770168619391,2.7406316,2271.3,2270.1,0.0033382]
[1770168619991,2.7406316,2271.3,2270.1,2.51241373]
[1770168620186,2.7406316,2271.3,2270.1,0.0033382]
[1770168620992,2.7406316,2271.3,2270.1,2.4603637]
[1770168625298,2.7406316,2271.3,2270.1,0.0033382]
[1770168626796,2.57293495,2271.1,2270.1,0.0033382]
[1770168626993,2.35246495,2270.9,2270.1,0.0033382]
[1770168627196,2.35639612,2270.9,2270.1,0.0033382]
[1770168627800,2.35639612,2270.9,2270.1,2.4603637]
[1770168628098,2.35639612,2270.9,2270.1,0.0033382]
[1770168628401,2.35639612,2270.9,2270.1,2.4603637]
[1770168628602,0.00393117,2270.9,2270.1,2.4603637]
[1770168629297,6.51688411,2271.4,2270.1,2.4603637]
[1770168629298,2.35246495,2271.4,2270.1,2.4603637]
[1770168629999,2.57291495,2271.4,2270.1,2.4603637]
[1770168630300,2.57776699,2271.4,2270.1,2.4603637]
[1770168631098,2.57291495,2271.3,2270.1,0.0033382]
[1770168631496,9.08979906,2271.3,2270.1,0.0033382]
[1770168631699,2.35246495,2271.2,2270.1,0.0033382]
[1770168632300,2.57292495,2271.2,2270.1,0.0033382]
[1770168633707,2.35246495,2271.1,2270.1,0.0033382]
[1770168633907,2.35246495,2270.9,2270.1,0.0033382]
[1770168639911,2.57295495,2270.9,2270.1,0.0033382]
[1770168641407,9.08983906,2270.9,2270.1,0.0033382]
[1770168641607,2.35246495,2270.8,2270.1,0.0033382]
[1770168641814,2.57298495,2270.6,2269.5,2.4570255]
[1770168642008,2.35246495,2270.3,2269.3,2.4570255]
[1770168642206,2.35246495,2270.1,2269.3,2.4570255]
[1770168642405,0.861,2270.2,2269.3,2.4570255]
[1770168642607,2.57300495,2270.4,2269.3,2.4570255]
[1770168642806,2.57300495,2270.4,2269.3,2.46263248]
[1770168642807,0.861,2270.4,2269.3,2.46263248]
[1770168643013,3.21346495,2270.4,2269.3,2.46263248]
[1770168643213,2.35246495,2270.3,2269.3,2.46263248]
[1770168644316,0.861,2270.4,2269.3,2.46263248]
[1770168645114,3.21346495,2270.4,2269.3,2.46263248]
[1770168645311,2.35246495,2270.3,2269.3,2.46263248]
[1770168646316,2.35246495,2270.3,2269.3,0.00560698]
[1770168646517,2.57301495,2270.3,2269.3,0.00560698]
[1770168647019,2.35246495,2270.3,2269.3,2.46263248]
[1770168648520,2.35246495,2270.3,2269.3,0.00560698]
[1770168650222,2.57301495,2270.3,2269.3,0.00560698]
[1770168653920,2.57301495,2270.3,2269.3,2.46675118]
[1770168654928,0.861,2270.4,2269.3,2.46675118]
[1770168655127,3.24917938,2270.4,2269.3,2.46675118]
[1770168657229,0.861,2270.4,2269.3,2.46675118]
[1770168658024,3.3061661,2270.4,2269.3,2.46675118]
[1770168661726,9.18255021,2270.8,2269.3,2.46675118]
[1770168662032,2.6656661,2270.8,2269.4,2.32578437]
[1770168662324,2.4451661,2270.8,2269.4,2.32578437]
[1770168662525,2.4451661,2271.1,2269.7,4.91313603]
[1770168662724,2.4451661,2271.3,2270.0,2.54636437]
[1770168662928,0.86685204,2271.4,2270.1,2.32578437]
[1770168663124,0.86685204,2271.4,2270.2,0.22056]
[1770168663325,0.86685204,2271.4,2270.3,2.32578437]
[1770168663633,0.00485204,2271.4,2270.5,2.54631437]
[1770168664028,2.45001814,2271.4,2270.5,2.32578437]
[1770168664234,2.45001814,2271.4,2270.3,2.58735166]
[1770168664235,2.67045814,2271.4,2270.3,2.32578437]
[1770168664433,2.67045814,2271.4,2269.9,2.32578437]
[1770168664926,2.45001814,2271.4,2270.1,2.54634437]
[1770168665233,0.00485204,2271.4,2270.3,2.32578437]
[1770168665530,2.45001814,2271.4,2270.5,2.32578437]
[1770168665731,2.45001814,2271.4,2270.3,2.32578437]
[1770168666228,2.45001814,2271.4,2270.0,2.54636437]
[1770168667132,9.04274904,2271.4,2270.0,2.54636437]
[1770168667330,2.4451661,2271.3,2270.0,2.54636437]
[1770168667532,2.4451661,2271.1,2270.0,2.54636437]
[1770168667829,2.4451661,2271.1,2269.6,2.32578437]
[1770168668031,2.4451661,2271.1,2269.6,2.54639437]
[1770168668631,2.4451661,2271.0,2269.6,2.54639437]
[1770168670528,2.4451661,2271.0,2269.7,0.2206]
[1770168670733,2.4451661,2271.0,2269.8,2.32578437]
[1770168674036,0.861,2271.1,2269.8,2.54638437]
[1770168674236,2.4451661,2271.3,2270.1,2.32578437]
[1770168674437,2.4451661,2271.3,2270.3,2.32578437]
[1770168675330,2.4451661,2271.3,2270.3,2.54633437]
[1770168676239,0.00485204,2271.4,2270.3,2.54633437]
[1770168676839,0.00485204,2271.4,2270.5,2.32578437]
[1770168677741,0.00485204,2271.4,2270.5,2.54631437]
[1770168678643,2.45001814,2271.4,2270.5,2.54631437]
[1770168683053,2.45001814,2271.4,2270.3,2.34976172]
[1770168685247,0.00485204,2271.4,2270.5,2.34976172]
[1770168685547,0.00485204,2271.4,2270.5,2.57029172]
[1770168686150,2.42094218,2271.4,2270.5,2.57029172]
[1770168687145,0.00485204,2271.4,2270.8,2.34976172]
[1770168687344,2.41609014,2272.0,2271.0,2.34976172]
[1770168688047,2.41609014,2272.0,2271.0,2.57024172]
[1770168689153,2.42097717,2272.0,2271.0,2.5755385]
[1770168691255,2.42097717,2272.0,2271.0,2.3550585]
[1770168692857,2.42097717,2272.0,2271.0,2.5755385]
[1770168694259,2.41609014,2272.6,2271.6,2.57017172]
[1770168694951,7.4537309,2273.1,2271.9,2.34976172]
[1770168695159,2.41999947,2273.1,2272.1,2.34976172]
[1770168695355,2.41999947,2273.1,2272.1,2.57013172]
[1770168696059,0.00390933,2273.1,2272.3,2.34976172]
[1770168696959,2.41609014,2273.7,2272.7,2.34976172]
[1770168697259,2.41609014,2273.7,2272.1,2.34976172]
[1770168697855,2.42031785,2273.7,2272.1,2.355226]
[1770168698349,2.41609014,2273.5,2272.1,2.355226]
[1770168698554,2.41609014,2273.3,2272.1,2.355226]
[1770168701362,2.41609014,2273.3,2272.1,2.575596]
[1770168701554,0.861,2273.4,2272.3,2.34976172]
[1770168701761,2.41609014,2273.6,2272.3,2.57011172]
[1770168706061,2.63633014,2273.6,2272.1,0.00546428]
[1770168706255,2.63633014,2273.6,2272.1,2.355226]
[1770168706856,2.41609014,2273.0,2272.1,0.00546428]
[1770168707062,2.63638014,2273.0,2272.1,0.00546428]
[1770168707564,2.41609014,2272.7,2272.1,0.00546428]
[1770168707764,2.41609014,2272.7,2271.5,2.34976172]
[1770168708760,2.41609014,2272.7,2271.5,2.35421341]
[1770168708961,2.41609014,2272.7,2271.5,2.57464341]
[1770168709262,3.27709014,2273.0,2271.5,2.57464341]
[1770168709457,2.41609014,2273.3,2272.3,2.34976172]
[1770168709661,0.00422771,2273.7,2272.3,2.34976172]
[1770168709662,2.41609014,2273.6,2272.3,2.34976172]
[1770168710062,2.41609014,2273.6,2272.5,2.34976172]
[1770168710561,0.00422771,2273.7,2272.5,2.34976172]
[1770168711860,0.00422771,2273.7,2272.9,0.2203]
[1770168712065,7.82026093,2274.9,2272.7,2.32061992]
[1770168712066,2.3666006,2274.5,2273.0,2.32061992]
[1770168712462,2.3666006,2274.5,2273.2,2.32061992]
[1770168712663,2.3666006,2274.9,2273.2,2.54088992]
[1770168713066,2.37043447,2274.9,2273.4,2.32061992]
[1770168713267,2.37043447,2274.9,2273.4,2.54085992]
[1770168714065,2.59054447,2274.9,2273.4,2.32061992]
[1770168716368,2.37043447,2274.9,2273.4,2.54086992]
[1770168716872,2.42845627,2273.9,2272.7,2.36675914]
[1770168717069,2.42845627,2273.9,2272.4,2.36675914]
[1770168717372,2.42845627,2273.9,2272.6,2.58708914]
[1770168717567,0.22017,2274.3,2271.9,5.30266172]
[1770168717568,0.22017,2274.3,2272.8,2.36675914]
[1770168717772,2.42845627,2274.2,2272.8,2.36675914]
[1770168717968,2.42845627,2274.2,2272.8,2.37109184]
[1770168718373,2.42845627,2274.2,2273.1,2.58703914]
[1770168718573,2.42845627,2274.4,2273.1,2.58703914]
[1770168718873,2.42845627,2274.4,2273.1,2.36675914]
[1770168721572,2.42845627,2274.2,2273.1,2.36675914]
[1770168721780,2.42845627,2273.8,2272.8,2.37109184]
[1770168722270,2.42845627,2274.1,2272.8,2.37109184]
[1770168723478,2.42845627,2274.1,2272.8,2.59139184]
[1770168723673,2.42845627,2274.1,2272.8,2.37109184]
[1770168723979,5.14376633,2274.1,2272.8,0.0043327]
[1770168724177,2.42845627,2273.8,2272.8,0.0043327]
[1770168724377,2.42845627,2273.8,2272.3,0.22035]
[1770168724378,2.42845627,2273.6,2272.3,0.22035]
[1770168724776,2.42845627,2273.6,2272.2,2.36675914]
[1770168725279,2.42845627,2273.6,2272.2,2.37112951]
[1770168725581,2.42845627,2273.4,2272.2,0.00437037]
[1770168725876,2.42845627,2273.0,2272.2,0.00437037]
[1770168726178,2.43186703,2273.0,2272.2,0.00437037]
[1770168726681,2.43186703,2273.0,2272.2,2.37112951]
[1770168727076,0.00341076,2273.0,2272.2,2.37112951]
[1770168732981,2.43186703,2273.0,2272.2,2.37112951]
[1770168733282,0.00341076,2273.0,2272.2,2.59148951]
[1770168733580,2.42845627,2273.9,2272.7,2.36675914]
[1770168733779,2.42845627,2274.2,2273.0,2.58704914]
[1770168734581,2.43210283,2274.2,2273.0,2.58704914]
[1770168735375,2.43210283,2274.2,2273.2,2.36675914]
[1770168735575,0.00364656,2274.2,2273.2,2.36675914]
[1770168739287,2.43210283,2274.2,2273.2,2.36675914]
[1770168741586,0.00364656,2274.2,2273.2,2.36675914]
[1770168741782,0.00364656,2274.2,2273.4,2.41007905]
[1770168742084,0.00364656,2274.2,2273.4,2.63032905]
[1770168742480,2.41560762,2274.8,2273.7,0.22022]
[1770168742679,2.41560762,2274.8,2273.8,2.41007905]
[1770168743484,2.41933987,2274.8,2273.8,0.00365208]
[1770168743986,2.41560762,2274.6,2273.2,2.63034905]
[1770168744487,2.63573762,2274.6,2273.2,2.63034905]
[1770168744884,2.41560762,2274.6,2273.4,2.41007905]
[1770168745187,0.00373225,2274.8,2273.4,2.41007905]
[1770168745188,0.00373225,2274.8,2273.9,2.41007905]
[1770168745387,2.41933987,2274.8,2273.9,2.41007905]
[1770168748590,0.00373225,2274.8,2273.9,2.41007905]
[1770168760290,0.00373225,2274.8,2273.9,2.63027905]
[1770168760491,2.41560762,2275.4,2274.4,2.41007905]
[1770168760691,2.41560762,2275.7,2274.4,2.63022905]
[1770168761087,6.5927309,2276.1,2274.8,2.41007905]
[1770168761396,2.42124881,2276.1,2275.2,2.41007905]
[1770168761591,0.00564119,2276.1,2275.2,2.41007905]
[1770168761793,0.00564119,2276.1,2275.2,2.63014905]
[1770168761989,2.41560762,2276.7,2275.5,2.41007905]
[1770168762191,2.41560762,2276.7,2275.2,2.41007905]
[1770168762392,2.41560762,2276.4,2275.2,2.41007905]
[1770168762595,2.63556762,2276.4,2275.2,2.41007905]
[1770168762890,2.41560762,2276.2,2275.2,2.41007905]
[1770168763092,2.41560762,2276.2,2274.8,0.00412534]
[1770168763297,2.63558762,2276.2,2274.8,2.41420439]
[1770168763794,2.41560762,2275.6,2274.8,0.00412534]
[1770168763995,2.63564762,2275.6,2274.2,2.41007905]
[1770168765098,4.412,2275.9,2274.2,2.41007905]
[1770168765099,2.41560762,2275.9,2274.7,2.63019905]
[1770168765299,2.41560762,2276.2,2274.7,2.63019905]
[1770168765500,0.86325944,2276.4,2274.9,2.41007905]
[1770168765701,2.41886706,2276.4,2275.1,2.41007905]
[1770168766103,2.41886706,2276.4,2275.1,2.63015905]
[1770168768303,2.41886706,2276.4,2275.1,2.41007905]
[1770168769100,0.00325944,2276.4,2275.1,2.41007905]
[1770168769297,0.00325944,2276.4,2275.1,2.63015905]
[1770168770807,2.37643441,2277.3,2275.8,2.41583173]
[1770168771001,2.37643441,2277.3,2276.0,2.41583173]
[1770168771305,2.37643441,2277.3,2276.0,2.63582173]
[1770168771498,2.37643441,2277.6,2276.3,2.41583173]
[1770168771705,2.38173768,2277.6,2276.3,2.63901962]
[1770168771901,0.00530327,2277.6,2276.3,2.63901962]
[1770168772406,2.38173768,2277.6,2276.5,2.41583173]
[1770168772606,0.00530327,2277.6,2276.5,2.41583173]
[1770168772804,2.37643441,2278.3,2276.8,2.41583173]
[1770168773003,2.37643441,2278.6,2277.0,2.41583173]
[1770168773404,2.37643441,2278.6,2277.0,2.63573173]
[1770168773806,2.38101968,2278.6,2277.0,2.63573173]
[1770168774213,16.89271733,2280.3,2277.3,2.41583173]
[1770168774408,2.37643441,2279.6,2277.8,2.41583173]
[1770168774603,2.37643441,2279.0,2277.8,2.41583173]
[1770168775004,6.7660384,2278.9,2277.0,2.41583173]
[1770168775308,2.37951712,2278.9,2277.0,2.41583173]
[1770168775508,2.35361202,2278.8,2277.0,2.41583173]
[1770168775906,6.74321601,2278.5,2277.0,2.41583173]
[1770168776107,2.35361202,2278.4,2277.0,2.41583173]
[1770168776508,2.35361202,2278.3,2277.0,2.41583173]
[1770168776710,2.35361202,2278.1,2277.0,2.41583173]
[1770168776910,0.859,2278.0,2276.6,2.4729436]
[1770168777207,3.21261202,2278.3,2276.6,2.6928836]
[1770168777510,2.35361202,2278.2,2276.6,2.6928836]
[1770168780312,2.35361202,2278.0,2276.6,2.6928836]
[1770168780606,2.35361202,2277.9,2276.6,2.6928836]
[1770168780808,2.35361202,2277.8,2276.6,2.6928836]
[1770168781007,2.35361202,2278.1,2276.6,2.6928836]
[1770168781212,2.35361202,2277.8,2276.6,2.4729436]
[1770168781412,2.35361202,2277.5,2276.3,2.47616149]
[1770168782006,0.21982,2277.9,2276.3,2.47616149]
[1770168782007,4.38960399,2277.2,2276.3,2.47616149]
[1770168782210,0.00341092,2277.2,2276.3,2.47616149]
[1770168782912,4.39301491,2277.2,2276.3,2.47616149]
[1770168783109,4.38960399,2277.1,2276.3,2.47616149]
[1770168783710,0.00341092,2277.2,2276.5,2.4729436]
[1770168784112,4.39301491,2277.2,2276.5,2.4729436]
[1770168784309,4.38960399,2277.1,2276.5,2.4729436]
[1770168785512,0.00341092,2277.2,2276.5,2.4729436]
[1770168785719,4.38960399,2277.1,2276.5,2.4729436]
[1770168786214,4.38960399,2277.1,2276.3,2.47616149]
[1770168786517,0.00341092,2277.2,2276.3,2.47616149]
[1770168786713,4.39301491,2277.2,2276.3,2.47616149]
[1770168787211,0.00341092,2277.2,2276.3,2.47616149]
[1770168787416,2.35361202,2277.8,2276.9,2.4729436]
[1770168787613,2.35361202,2278.1,2277.1,2.4729436]
[1770168787812,2.35361202,2278.4,2277.1,2.4729436]
[1770168788209,4.38960399,2278.2,2277.1,2.4729436]
[1770168788410,2.35361202,2278.2,2277.1,2.6928336]
[1770168788615,4.38960399,2278.1,2277.1,2.6928336]
[1770168789415,0.00308536,2278.4,2277.1,2.6928336]
[1770168789813,4.38960399,2278.3,2277.1,2.6928336]
[1770168790319,6.74321601,2278.2,2277.1,2.6928336]
[1770168790618,6.74321601,2278.1,2277.1,2.6928336]
[1770168791015,4.38960399,2278.0,2277.1,2.6928336]
[1770168791414,4.38960399,2277.9,2277.1,2.6928336]
[1770168791719,4.38960399,2278.0,2277.1,2.6928336]
[1770168792019,4.38960399,2277.9,2277.1,2.6928336]
[1770168792223,4.38960399,2278.0,2277.1,2.6928336]
[1770168792422,0.00308536,2278.4,2277.3,2.4729436]
[1770168792818,4.38960399,2278.3,2277.3,2.4729436]
[1770168793027,0.00308536,2278.4,2277.5,2.4729436]
[1770168793622,4.39268935,2278.4,2277.5,2.4729436]
[1770168794121,4.38960399,2278.3,2277.5,2.4729436]
[1770168794315,2.35669738,2278.4,2277.5,2.4729436]
[1770168794517,4.38960399,2278.0,2277.5,2.4729436]
[1770168794719,2.35361202,2277.7,2276.7,2.4729436]
[1770168794924,4.38960399,2277.1,2276.4,2.4729436]
[1770168795117,6.74321601,2277.4,2276.4,2.4729436]
[1770168795523,4.38960399,2277.1,2276.4,2.4729436]
[1770168795717,2.35361202,2277.3,2276.4,2.4729436]
[1770168795918,4.38960399,2277.1,2276.4,2.4729436]
[1770168796321,4.38960399,2277.0,2276.4,2.4729436]
[1770168796524,4.38960399,2277.1,2276.4,2.4729436]
[1770168796920,4.38960399,2276.9,2276.3,0.00321789]
[1770168797124,2.35361202,2277.2,2276.3,2.47616149]
[1770168797523,2.35361202,2276.6,2275.1,2.4729436]